[Event "Early-Titled-Tuesday-Blitz-February-20-2024"]
[Site "Chess.com"]
[Date "2024.02.20"]
[Round "6"]
[White "MyDream003"]
[Black "Casper"]
[Result "1-0"]
[WhiteElo "2737"]
[BlackElo "2531"]
[TimeControl "180+1"]
[EndTime "9:08:54 PST"]
[Termination "MyDream003 won on time"]

1. e4 {[%clk 0:03:00.9]} 1... g6 {[%clk 0:02:58.1]} 2. d4 {[%clk 0:03:00.5]}
2... Bg7 {[%clk 0:02:59]} 3. Nf3 {[%clk 0:03:00.6]} 3... d6 {[%clk 0:02:59.4]}
4. c3 {[%clk 0:03:00.3]} 4... Bg4 {[%clk 0:02:58.5]} 5. Bd3 {[%clk 0:02:59.1]}
5... Nd7 {[%clk 0:02:57.8]} 6. Nbd2 {[%clk 0:02:59.3]} 6... e5 {[%clk
0:02:58.5]} 7. h3 {[%clk 0:02:58.4]} 7... Bxf3 {[%clk 0:02:58.3]} 8. Nxf3 {[%clk
0:02:59.3]} 8... exd4 {[%clk 0:02:58]} 9. cxd4 {[%clk 0:03:00.2]} 9... Ne7
{[%clk 0:02:57.5]} 10. O-O {[%clk 0:02:59.4]} 10... O-O {[%clk 0:02:57.6]} 11.
Bg5 {[%clk 0:02:58]} 11... h6 {[%clk 0:02:56.1]} 12. Bh4 {[%clk 0:02:58.3]}
12... Kh8 {[%clk 0:02:54.8]} 13. Re1 {[%clk 0:02:43]} 13... g5 {[%clk
0:02:50.9]} 14. Bg3 {[%clk 0:02:43.3]} 14... f5 {[%clk 0:02:51.4]} 15. exf5
{[%clk 0:02:43.8]} 15... Nxf5 {[%clk 0:02:52.3]} 16. Bxf5 {[%clk 0:02:39.1]}
16... Rxf5 {[%clk 0:02:53.2]} 17. Qc2 {[%clk 0:02:37.9]} 17... Rf7 {[%clk
0:02:50]} 18. Qc4 {[%clk 0:02:22.4]} 18... Qf8 {[%clk 0:02:38.5]} 19. Re3 {[%clk
0:02:09.5]} 19... Nf6 {[%clk 0:02:37.5]} 20. Rae1 {[%clk 0:02:09.4]} 20... Nh5
{[%clk 0:02:29.2]} 21. Bh2 {[%clk 0:02:01.6]} 21... b5 {[%clk 0:02:10.6]} 22.
Qxb5 {[%clk 0:01:56.3]} 22... Rb8 {[%clk 0:02:10.3]} 23. Qc6 {[%clk 0:01:26.2]}
23... Nf6 {[%clk 0:02:03.4]} 24. b3 {[%clk 0:01:26.6]} 24... Kh7 {[%clk
0:01:42.6]} 25. Qc2+ {[%clk 0:01:25.1]} 25... Kh8 {[%clk 0:01:41.8]} 26. Re6
{[%clk 0:01:19.4]} 26... Nd5 {[%clk 0:01:39.8]} 27. Qc6 {[%clk 0:01:11.9]} 27...
Nb4 {[%clk 0:01:32.5]} 28. Qa4 {[%clk 0:01:11.8]} 28... Qg8 {[%clk 0:00:55.6]}
29. Re8 {[%clk 0:01:03.5]} 29... Rf8 {[%clk 0:00:55.5]} 30. Rxb8 {[%clk
0:01:03]} 30... Rxb8 {[%clk 0:00:55.4]} 31. Qxa7 {[%clk 0:01:02.6]} 31... Nd3
{[%clk 0:00:42.5]} 32. Rd1 {[%clk 0:00:56.6]} 32... Ra8 {[%clk 0:00:28.7]} 33.
Qxc7 {[%clk 0:00:56.4]} 33... Rxa2 {[%clk 0:00:29.6]} 34. Bg3 {[%clk 0:00:49.3]}
34... Nf4 {[%clk 0:00:13.9]} 35. Bxf4 {[%clk 0:00:47.3]} 35... gxf4 {[%clk
0:00:14.8]} 36. Qxd6 {[%clk 0:00:47.5]} 36... Qxb3 {[%clk 0:00:15.5]} 37. Re1
{[%clk 0:00:45.3]} 37... Qc2 {[%clk 0:00:10.2]} 38. Rf1 {[%clk 0:00:42]} 38...
Qf5 {[%clk 0:00:05.6]} 39. d5 {[%clk 0:00:35.6]} 39... Kh7 {[%clk 0:00:01.8]}
40. Qc5 {[%clk 0:00:29.7]} 1-0

[Event "Early-Titled-Tuesday-Blitz-February-20-2024"]
[Site "Chess.com"]
[Date "2024.02.20"]
[Round "6"]
[White "Maftuna2303"]
[Black "Dewarfd"]
[Result "1-0"]
[WhiteElo "2407"]
[BlackElo "2137"]
[TimeControl "180+1"]
[EndTime "9:08:55 PST"]
[Termination "Maftuna2303 won on time"]

1. e4 {[%clk 0:03:00.9]} 1... c5 {[%clk 0:02:58.2]} 2. Nf3 {[%clk 0:03:00.9]}
2... g6 {[%clk 0:02:58.1]} 3. g3 {[%clk 0:03:00.7]} 3... Bg7 {[%clk 0:02:56.3]}
4. Bg2 {[%clk 0:03:00.9]} 4... Nc6 {[%clk 0:02:56.3]} 5. O-O {[%clk 0:03:01]}
5... d6 {[%clk 0:02:56.6]} 6. c3 {[%clk 0:03:01.3]} 6... Nf6 {[%clk 0:02:56.6]}
7. Qe2 {[%clk 0:03:01.4]} 7... O-O {[%clk 0:02:56.4]} 8. Rd1 {[%clk 0:03:00.7]}
8... Nd7 {[%clk 0:02:54.4]} 9. d4 {[%clk 0:03:00.3]} 9... cxd4 {[%clk
0:02:54.5]} 10. cxd4 {[%clk 0:03:00.6]} 10... Rb8 {[%clk 0:02:50.4]} 11. Nc3
{[%clk 0:03:00.6]} 11... a6 {[%clk 0:02:49.7]} 12. Bf4 {[%clk 0:03:00]} 12... b5
{[%clk 0:02:46.4]} 13. a3 {[%clk 0:02:59.8]} 13... Qb6 {[%clk 0:02:42.8]} 14.
Be3 {[%clk 0:02:58.2]} 14... Na5 {[%clk 0:02:30.3]} 15. d5 {[%clk 0:02:57.4]}
15... Qd8 {[%clk 0:02:17.8]} 16. Nd4 {[%clk 0:02:54.4]} 16... Bb7 {[%clk
0:02:12.6]} 17. Rac1 {[%clk 0:02:49.6]} 17... Nc4 {[%clk 0:02:11.6]} 18. Bf4
{[%clk 0:02:45.2]} 18... Rc8 {[%clk 0:02:01.8]} 19. a4 {[%clk 0:02:41.2]} 19...
Qb6 {[%clk 0:01:35.5]} 20. Nf3 {[%clk 0:02:23.8]} 20... Nc5 {[%clk 0:01:19]} 21.
axb5 {[%clk 0:02:21.7]} 21... axb5 {[%clk 0:01:19.9]} 22. e5 {[%clk 0:02:14.4]}
22... dxe5 {[%clk 0:01:10.1]} 23. Nxe5 {[%clk 0:02:14]} 23... Nxe5 {[%clk
0:01:09.4]} 24. Bxe5 {[%clk 0:02:13.7]} 24... Bxe5 {[%clk 0:01:03.2]} 25. Qxe5
{[%clk 0:02:13.1]} 25... b4 {[%clk 0:00:54.9]} 26. Ne4 {[%clk 0:02:09.6]} 26...
Nxe4 {[%clk 0:00:54.5]} 27. Qxe4 {[%clk 0:02:08.7]} 27... Qd6 {[%clk 0:00:50.1]}
28. Qd4 {[%clk 0:01:59]} 28... Rxc1 {[%clk 0:00:46.8]} 29. Rxc1 {[%clk 0:01:59]}
29... Rd8 {[%clk 0:00:46.4]} 30. Qa7 {[%clk 0:01:33.7]} 30... Bxd5 {[%clk
0:00:40.9]} 31. Bxd5 {[%clk 0:01:33.7]} 31... Qxd5 {[%clk 0:00:40.7]} 32. Qxe7
{[%clk 0:01:33.6]} 32... Qd2 {[%clk 0:00:13.7]} 33. Re1 {[%clk 0:01:25.3]} 33...
Rf8 {[%clk 0:00:13.3]} 34. b3 {[%clk 0:01:22]} 34... Qc3 {[%clk 0:00:07.1]} 35.
Re3 {[%clk 0:01:19.1]} 35... Qc1+ {[%clk 0:00:07.2]} 36. Kg2 {[%clk 0:01:19.1]}
36... Qc6+ {[%clk 0:00:07.6]} 37. Kh3 {[%clk 0:01:14.4]} 37... Qc8+ {[%clk
0:00:07]} 38. Kg2 {[%clk 0:01:12.7]} 38... Qc6+ {[%clk 0:00:06.3]} 39. Qe4
{[%clk 0:01:03.7]} 39... Qc5 {[%clk 0:00:03.8]} 40. Rd3 {[%clk 0:01:01.3]} 40...
Rc8 {[%clk 0:00:02.5]} 41. Rd4 {[%clk 0:00:58]} 41... Rb8 {[%clk 0:00:02.5]} 42.
Rd7 {[%clk 0:00:56.8]} 1-0

[Event "Early-Titled-Tuesday-Blitz-February-20-2024"]
[Site "Chess.com"]
[Date "2024.02.20"]
[Round "6"]
[White "sewlins"]
[Black "EdmundPlayer"]
[Result "1-0"]
[WhiteElo "2145"]
[BlackElo "2278"]
[TimeControl "180+1"]
[EndTime "9:08:59 PST"]
[Termination "sewlins won by resignation"]

1. e4 {[%clk 0:03:00.9]} 1... c6 {[%clk 0:02:59.7]} 2. Nf3 {[%clk 0:03:00.6]}
2... d5 {[%clk 0:02:58.9]} 3. Nc3 {[%clk 0:03:01]} 3... g6 {[%clk 0:02:56.9]} 4.
d4 {[%clk 0:02:41.7]} 4... dxe4 {[%clk 0:02:36]} 5. Nxe4 {[%clk 0:02:42.6]} 5...
Bg7 {[%clk 0:02:35.2]} 6. Bc4 {[%clk 0:02:35.4]} 6... Nf6 {[%clk 0:02:25.9]} 7.
Neg5 {[%clk 0:02:14.3]} 7... Nd5 {[%clk 0:02:08]} 8. Ne5 {[%clk 0:02:10.5]} 8...
O-O {[%clk 0:01:47.1]} 9. Ne4 {[%clk 0:01:45.7]} 9... Nd7 {[%clk 0:01:30.8]} 10.
Nxd7 {[%clk 0:01:23.2]} 10... Bxd7 {[%clk 0:01:29.2]} 11. c3 {[%clk 0:01:21.1]}
11... Bf5 {[%clk 0:01:08.6]} 12. Ng3 {[%clk 0:01:20.2]} 12... Qd7 {[%clk
0:01:05.1]} 13. O-O {[%clk 0:01:20.8]} 13... Rad8 {[%clk 0:01:00.8]} 14. a4
{[%clk 0:01:14.6]} 14... Nb6 {[%clk 0:00:50.3]} 15. Nxf5 {[%clk 0:01:10.1]}
15... Nxc4 {[%clk 0:00:38.8]} 16. Nxg7 {[%clk 0:01:09.8]} 16... Kxg7 {[%clk
0:00:39.2]} 17. Qb3 {[%clk 0:01:10.3]} 17... Nd6 {[%clk 0:00:24.1]} 18. Re1
{[%clk 0:00:59.2]} 18... Rb8 {[%clk 0:00:20.1]} 19. Bf4 {[%clk 0:00:59.3]} 19...
b5 {[%clk 0:00:16.2]} 20. a5 {[%clk 0:00:54.8]} 20... Rbd8 {[%clk 0:00:15.3]}
21. Rad1 {[%clk 0:00:43.4]} 21... Nc4 {[%clk 0:00:15.2]} 22. Qb4 {[%clk
0:00:38.3]} 22... e6 {[%clk 0:00:13.3]} 23. b3 {[%clk 0:00:37.1]} 23... Nd6
{[%clk 0:00:11.2]} 24. c4 {[%clk 0:00:37.5]} 24... bxc4 {[%clk 0:00:10.5]} 25.
bxc4 {[%clk 0:00:38.4]} 25... Nf5 {[%clk 0:00:10.2]} 26. Qc5 {[%clk 0:00:28.9]}
26... Rfe8 {[%clk 0:00:08.4]} 27. a6 {[%clk 0:00:28.4]} 27... f6 {[%clk
0:00:07.3]} 28. h3 {[%clk 0:00:26.2]} 28... Nxd4 {[%clk 0:00:06.9]} 29. Be3
{[%clk 0:00:19.4]} 29... e5 {[%clk 0:00:07.2]} 30. Bxd4 {[%clk 0:00:17.3]} 30...
exd4 {[%clk 0:00:06.5]} 31. Rxe8 {[%clk 0:00:18.2]} 31... Qxe8 {[%clk
0:00:06.9]} 32. Rxd4 {[%clk 0:00:14.2]} 32... Qe1+ {[%clk 0:00:06.2]} 33. Kh2
{[%clk 0:00:14]} 33... Rd7 {[%clk 0:00:04.7]} 34. Rxd7+ {[%clk 0:00:13.3]} 34...
Kh6 {[%clk 0:00:04.3]} 35. Qe3+ {[%clk 0:00:13.3]} 1-0

[Event "Early-Titled-Tuesday-Blitz-February-20-2024"]
[Site "Chess.com"]
[Date "2024.02.20"]
[Round "6"]
[White "Louis-Paulsen-Fan"]
[Black "Magic-Nelwyn"]
[Result "1/2-1/2"]
[WhiteElo "2226"]
[BlackElo "2475"]
[TimeControl "180+1"]
[EndTime "9:09:00 PST"]
[Termination "Game drawn by repetition"]

1. d4 {[%clk 0:03:00.9]} 1... d6 {[%clk 0:03:00.3]} 2. Nf3 {[%clk 0:03:00]} 2...
g6 {[%clk 0:03:00.4]} 3. c4 {[%clk 0:03:00.6]} 3... Bg7 {[%clk 0:03:00.9]} 4.
Nc3 {[%clk 0:03:01.2]} 4... c5 {[%clk 0:03:00.3]} 5. d5 {[%clk 0:02:57.9]} 5...
Bxc3+ {[%clk 0:03:01.2]} 6. bxc3 {[%clk 0:02:58.3]} 6... f5 {[%clk 0:03:01.4]}
7. e4 {[%clk 0:02:57.9]} 7... fxe4 {[%clk 0:02:59]} 8. Ng5 {[%clk 0:02:58.1]}
8... Nf6 {[%clk 0:02:58.2]} 9. f3 {[%clk 0:02:56.7]} 9... Qa5 {[%clk 0:02:28.9]}
10. Qc2 {[%clk 0:02:42.3]} 10... exf3 {[%clk 0:02:16.6]} 11. Nxf3 {[%clk
0:02:43.2]} 11... Bf5 {[%clk 0:02:16]} 12. Bd3 {[%clk 0:02:43.5]} 12... Nbd7
{[%clk 0:02:07.9]} 13. Bxf5 {[%clk 0:02:36.9]} 13... gxf5 {[%clk 0:02:08.8]} 14.
O-O {[%clk 0:02:36]} 14... Ne4 {[%clk 0:02:04.3]} 15. Bb2 {[%clk 0:02:07.9]}
15... O-O-O {[%clk 0:01:56.1]} 16. Nh4 {[%clk 0:02:07.6]} 16... Nb6 {[%clk
0:00:20.8]} 17. Nxf5 {[%clk 0:02:06.6]} 17... Nxc4 {[%clk 0:00:18.4]} 18. Qxe4
{[%clk 0:01:34.7]} 18... Nxb2 {[%clk 0:00:18.3]} 19. Qxe7 {[%clk 0:01:34.4]}
19... Qc7 {[%clk 0:00:16.6]} 20. Qe6+ {[%clk 0:01:27.1]} 20... Kb8 {[%clk
0:00:16]} 21. Rae1 {[%clk 0:00:48]} 21... Nc4 {[%clk 0:00:15.6]} 22. Rf3 {[%clk
0:00:40.8]} 22... Rhf8 {[%clk 0:00:15.3]} 23. Rg3 {[%clk 0:00:35.9]} 23... Rd7
{[%clk 0:00:07.4]} 24. h3 {[%clk 0:00:33]} 24... a6 {[%clk 0:00:07.3]} 25. Rg4
{[%clk 0:00:28.6]} 25... b5 {[%clk 0:00:07.1]} 26. a4 {[%clk 0:00:28.1]} 26...
Rdf7 {[%clk 0:00:07]} 27. Nh6 {[%clk 0:00:24.2]} 27... Rf6 {[%clk 0:00:06.6]}
28. Qe7 {[%clk 0:00:13]} 28... Qxe7 {[%clk 0:00:06.5]} 29. Rxe7 {[%clk
0:00:12.3]} 29... Rxh6 {[%clk 0:00:07.4]} 30. Rgg7 {[%clk 0:00:12.3]} 30... Na5
{[%clk 0:00:06.8]} 31. axb5 {[%clk 0:00:12.4]} 31... axb5 {[%clk 0:00:07.3]} 32.
Ra7 {[%clk 0:00:12.5]} 32... Rg6 {[%clk 0:00:06.6]} 33. Rxh7 {[%clk 0:00:11.8]}
33... Rfg8 {[%clk 0:00:05.5]} 34. g4 {[%clk 0:00:11.3]} 34... Nc4 {[%clk
0:00:05.3]} 35. Rhb7+ {[%clk 0:00:08.8]} 35... Kc8 {[%clk 0:00:05.8]} 36. Rc7+
{[%clk 0:00:09.2]} 36... Kb8 {[%clk 0:00:06.1]} 37. Rcb7+ {[%clk 0:00:08.3]}
37... Kc8 {[%clk 0:00:06.5]} 38. Rc7+ {[%clk 0:00:08.9]} 38... Kb8 {[%clk
0:00:06.5]} 39. Rcb7+ {[%clk 0:00:09.4]} 1/2-1/2

[Event "Early-Titled-Tuesday-Blitz-February-20-2024"]
[Site "Chess.com"]
[Date "2024.02.20"]
[Round "6"]
[White "Elsa167"]
[Black "Nikolakis2014"]
[Result "1-0"]
[WhiteElo "2898"]
[BlackElo "2753"]
[TimeControl "180+1"]
[EndTime "9:09:03 PST"]
[Termination "Elsa167 won by resignation"]

1. e4 {[%clk 0:03:00.9]} 1... c5 {[%clk 0:02:58.7]} 2. Nf3 {[%clk 0:02:59.6]}
2... Nc6 {[%clk 0:02:58.8]} 3. Bc4 {[%clk 0:02:57.3]} 3... e6 {[%clk 0:02:58.3]}
4. O-O {[%clk 0:02:57.4]} 4... a6 {[%clk 0:02:57.9]} 5. Re1 {[%clk 0:02:57.5]}
5... b5 {[%clk 0:02:55]} 6. Bf1 {[%clk 0:02:57.5]} 6... Bb7 {[%clk 0:02:55]} 7.
c3 {[%clk 0:02:56.7]} 7... Nf6 {[%clk 0:02:46]} 8. d4 {[%clk 0:02:50]} 8... d5
{[%clk 0:02:45]} 9. e5 {[%clk 0:02:45.7]} 9... Ne4 {[%clk 0:02:45]} 10. Be3
{[%clk 0:02:36.4]} 10... Be7 {[%clk 0:02:42.2]} 11. Nbd2 {[%clk 0:02:36.4]}
11... O-O {[%clk 0:02:35.9]} 12. Bd3 {[%clk 0:02:33.9]} 12... Nxd2 {[%clk
0:02:30.1]} 13. Nxd2 {[%clk 0:02:26.8]} 13... cxd4 {[%clk 0:02:27.1]} 14. cxd4
{[%clk 0:02:26.6]} 14... f5 {[%clk 0:02:09.8]} 15. exf6 {[%clk 0:02:23.1]} 15...
Bxf6 {[%clk 0:02:09.9]} 16. Qh5 {[%clk 0:02:11.5]} 16... g6 {[%clk 0:02:04.4]}
17. Qg4 {[%clk 0:02:11.2]} 17... e5 {[%clk 0:01:57.9]} 18. Nb3 {[%clk
0:01:49.3]} 18... Bc8 {[%clk 0:01:34.3]} 19. Qd1 {[%clk 0:01:32.8]} 19... exd4
{[%clk 0:01:28.6]} 20. Bh6 {[%clk 0:01:30.4]} 20... Rf7 {[%clk 0:01:14.4]} 21.
Be2 {[%clk 0:01:18.4]} 21... Bf5 {[%clk 0:01:06.3]} 22. Rc1 {[%clk 0:01:16.5]}
22... Rc8 {[%clk 0:01:05.6]} 23. Bg4 {[%clk 0:01:04.5]} 23... Qd7 {[%clk
0:00:24.7]} 24. Bf3 {[%clk 0:00:50.3]} 24... Qd6 {[%clk 0:00:21.7]} 25. Qd2
{[%clk 0:00:44.2]} 25... Be5 {[%clk 0:00:20.7]} 26. g3 {[%clk 0:00:25.4]} 26...
d3 {[%clk 0:00:20.8]} 27. Rc5 {[%clk 0:00:18.9]} 27... Rd8 {[%clk 0:00:18.9]}
28. Rxc6 {[%clk 0:00:18.2]} 28... Qxc6 {[%clk 0:00:18.7]} 29. Rxe5 {[%clk
0:00:18.9]} 29... Qc2 {[%clk 0:00:18.9]} 30. Qe3 {[%clk 0:00:13.2]} 30... Be4
{[%clk 0:00:18.1]} 31. Bxe4 {[%clk 0:00:11]} 31... dxe4 {[%clk 0:00:18.2]} 32.
Rxe4 {[%clk 0:00:11.6]} 32... Qxb2 {[%clk 0:00:17.2]} 33. Re8+ {[%clk
0:00:11.2]} 33... Rf8 {[%clk 0:00:15.4]} 34. Bxf8 {[%clk 0:00:07.3]} 34... d2
{[%clk 0:00:12.1]} 35. Rxd8 {[%clk 0:00:04.4]} 35... Qb1+ {[%clk 0:00:11.6]} 36.
Kg2 {[%clk 0:00:05]} 36... Qf5 {[%clk 0:00:11.5]} 37. Qxd2 {[%clk 0:00:04.4]}
37... Kf7 {[%clk 0:00:12.4]} 38. Qd7+ {[%clk 0:00:04.4]} 38... Qxd7 {[%clk
0:00:11.4]} 39. Rxd7+ {[%clk 0:00:05.3]} 39... Kxf8 {[%clk 0:00:12.1]} 40. Rxh7
{[%clk 0:00:05.7]} 1-0

[Event "Early-Titled-Tuesday-Blitz-February-20-2024"]
[Site "Chess.com"]
[Date "2024.02.20"]
[Round "6"]
[White "Chessmissile07"]
[Black "PavelShkapenko"]
[Result "0-1"]
[WhiteElo "2876"]
[BlackElo "2725"]
[TimeControl "180+1"]
[EndTime "9:09:04 PST"]
[Termination "PavelShkapenko won by checkmate"]

1. a3 {[%clk 0:03:00.9]} 1... d5 {[%clk 0:02:53.4]} 2. Nf3 {[%clk 0:02:57.2]}
2... Bg4 {[%clk 0:02:44]} 3. e3 {[%clk 0:02:48.8]} 3... Nd7 {[%clk 0:02:43.2]}
4. c4 {[%clk 0:02:46.9]} 4... dxc4 {[%clk 0:02:36.5]} 5. Bxc4 {[%clk 0:02:46.7]}
5... e6 {[%clk 0:02:36.8]} 6. d4 {[%clk 0:02:43.3]} 6... Ngf6 {[%clk 0:02:36.4]}
7. O-O {[%clk 0:02:42.6]} 7... Be7 {[%clk 0:02:36.2]} 8. Nc3 {[%clk 0:02:42.5]}
8... O-O {[%clk 0:02:36.5]} 9. h3 {[%clk 0:02:38.8]} 9... Bh5 {[%clk 0:02:35.7]}
10. b4 {[%clk 0:02:30]} 10... a5 {[%clk 0:02:35.2]} 11. b5 {[%clk 0:02:27.1]}
11... Bd6 {[%clk 0:02:35.3]} 12. Be2 {[%clk 0:02:22.5]} 12... Qe7 {[%clk
0:02:31.6]} 13. Nd2 {[%clk 0:02:18.7]} 13... Bxe2 {[%clk 0:02:30.7]} 14. Qxe2
{[%clk 0:02:19.6]} 14... e5 {[%clk 0:02:31.3]} 15. Nc4 {[%clk 0:02:18.2]} 15...
exd4 {[%clk 0:02:29.9]} 16. exd4 {[%clk 0:02:19.1]} 16... Qxe2 {[%clk
0:02:22.1]} 17. Nxe2 {[%clk 0:02:20]} 17... Nd5 {[%clk 0:02:22.2]} 18. Nxd6
{[%clk 0:01:53.2]} 18... cxd6 {[%clk 0:02:23.1]} 19. Nf4 {[%clk 0:01:53.1]}
19... N7b6 {[%clk 0:02:23]} 20. Nxd5 {[%clk 0:01:52.8]} 20... Nxd5 {[%clk
0:02:23.1]} 21. a4 {[%clk 0:01:53.2]} 21... Nb6 {[%clk 0:01:58.4]} 22. Bf4
{[%clk 0:01:47]} 22... Nc4 {[%clk 0:01:57.1]} 23. Rfc1 {[%clk 0:01:05.6]} 23...
d5 {[%clk 0:01:55.8]} 24. b6 {[%clk 0:01:00.2]} 24... Rfe8 {[%clk 0:01:52.1]}
25. Bc7 {[%clk 0:00:49.1]} 25... Re4 {[%clk 0:01:49.4]} 26. Rd1 {[%clk
0:00:35.5]} 26... Re2 {[%clk 0:01:26.2]} 27. Rab1 {[%clk 0:00:32.7]} 27... Nb2
{[%clk 0:01:07.7]} 28. Kf1 {[%clk 0:00:28.6]} 28... Nxd1 {[%clk 0:01:07.1]} 29.
Rxd1 {[%clk 0:00:27]} 29... Ra2 {[%clk 0:01:03.1]} 30. Re1 {[%clk 0:00:24.7]}
30... Rxa4 {[%clk 0:01:00.2]} 31. Re7 {[%clk 0:00:24.7]} 31... Rb4 {[%clk
0:00:47.7]} 32. Rd7 {[%clk 0:00:09.2]} 32... a4 {[%clk 0:00:44.7]} 33. Bd6
{[%clk 0:00:03.2]} 33... Rxb6 {[%clk 0:00:41.6]} 34. Bc5 {[%clk 0:00:03.8]}
34... Rb3 {[%clk 0:00:39.6]} 35. Ke2 {[%clk 0:00:02.3]} 35... a3 {[%clk
0:00:39.1]} 36. Bxa3 {[%clk 0:00:02.5]} 36... Rbxa3 {[%clk 0:00:38.9]} 37. g3
{[%clk 0:00:03.4]} 37... b5 {[%clk 0:00:37.5]} 38. Rxd5 {[%clk 0:00:03.3]} 38...
b4 {[%clk 0:00:37.9]} 39. Rc5 {[%clk 0:00:03.2]} 39... Rb8 {[%clk 0:00:37]} 40.
d5 {[%clk 0:00:03.3]} 40... b3 {[%clk 0:00:37.4]} 41. d6 {[%clk 0:00:03.9]}
41... b2 {[%clk 0:00:36.4]} 42. d7 {[%clk 0:00:04.3]} 42... Raa8 {[%clk
0:00:36.6]} 43. Rf5 {[%clk 0:00:01.5]} 43... b1=Q {[%clk 0:00:35.7]} 44. Rf3
{[%clk 0:00:01.9]} 44... Qe4+ {[%clk 0:00:34.9]} 45. Re3 {[%clk 0:00:02]} 45...
Ra2+ {[%clk 0:00:33.9]} 46. Ke1 {[%clk 0:00:02.5]} 46... Qh1# {[%clk 0:00:33.7]}
0-1

[Event "Early-Titled-Tuesday-Blitz-February-20-2024"]
[Site "Chess.com"]
[Date "2024.02.20"]
[Round "6"]
[White "ikhasu"]
[Black "Mikasinski"]
[Result "0-1"]
[WhiteElo "2460"]
[BlackElo "2637"]
[TimeControl "180+1"]
[EndTime "9:09:06 PST"]
[Termination "Mikasinski won on time"]

1. d4 {[%clk 0:03:00.9]} 1... Nf6 {[%clk 0:02:59.6]} 2. Bf4 {[%clk 0:03:01.3]}
2... g6 {[%clk 0:02:59.7]} 3. Nc3 {[%clk 0:03:00.7]} 3... d5 {[%clk 0:02:59.8]}
4. e3 {[%clk 0:03:01.1]} 4... Bg7 {[%clk 0:03:00.3]} 5. h4 {[%clk 0:03:01.2]}
5... h5 {[%clk 0:03:01]} 6. Nf3 {[%clk 0:03:01.1]} 6... O-O {[%clk 0:03:01.7]}
7. Ne5 {[%clk 0:02:58.1]} 7... c5 {[%clk 0:03:02]} 8. Qd2 {[%clk 0:02:53.9]}
8... Nc6 {[%clk 0:02:58.1]} 9. O-O-O {[%clk 0:02:43.7]} 9... cxd4 {[%clk
0:02:57.6]} 10. exd4 {[%clk 0:02:42.7]} 10... Bf5 {[%clk 0:02:57.6]} 11. f3
{[%clk 0:02:37.9]} 11... Rc8 {[%clk 0:02:56.2]} 12. Nxc6 {[%clk 0:02:36.4]}
12... Rxc6 {[%clk 0:02:54.6]} 13. Bd3 {[%clk 0:02:36.3]} 13... Bxd3 {[%clk
0:02:53.1]} 14. Qxd3 {[%clk 0:02:36]} 14... Qa5 {[%clk 0:02:53.3]} 15. Rhe1
{[%clk 0:02:32.9]} 15... Rfc8 {[%clk 0:02:47.4]} 16. Rxe7 {[%clk 0:02:25.1]}
16... Rxc3 {[%clk 0:02:45.8]} 17. bxc3 {[%clk 0:02:24.5]} 17... Qa3+ {[%clk
0:02:46.2]} 18. Kd2 {[%clk 0:02:23.1]} 18... Qxe7 {[%clk 0:02:46.8]} 19. Re1
{[%clk 0:02:20.2]} 19... Qa3 {[%clk 0:02:46.3]} 20. Bg5 {[%clk 0:02:16.8]} 20...
Nh7 {[%clk 0:02:43.3]} 21. Be7 {[%clk 0:02:15.2]} 21... Qxa2 {[%clk 0:02:43]}
22. Bd6 {[%clk 0:02:09.2]} 22... Nf6 {[%clk 0:02:35]} 23. Qb5 {[%clk 0:01:32.7]}
23... Qa6 {[%clk 0:02:27.7]} 24. Qxa6 {[%clk 0:01:26.4]} 24... bxa6 {[%clk
0:02:24.9]} 25. Bc5 {[%clk 0:01:25.8]} 25... Re8 {[%clk 0:02:19.5]} 26. Rb1
{[%clk 0:01:21.9]} 26... Bh6+ {[%clk 0:02:19.2]} 27. Kd1 {[%clk 0:01:20.8]}
27... Nd7 {[%clk 0:02:18.6]} 28. Bxa7 {[%clk 0:01:20]} 28... Ra8 {[%clk
0:02:16.6]} 29. Rb7 {[%clk 0:01:19.6]} 29... Nf8 {[%clk 0:02:16.8]} 30. c4
{[%clk 0:01:18]} 30... dxc4 {[%clk 0:02:16.5]} 31. d5 {[%clk 0:01:18]} 31... Rd8
{[%clk 0:02:16.4]} 32. Ke1 {[%clk 0:01:05]} 32... Rxd5 {[%clk 0:02:16.2]} 33.
Rb8 {[%clk 0:01:03]} 33... Kh7 {[%clk 0:02:15.6]} 34. Rb7 {[%clk 0:01:02.2]}
34... Rf5 {[%clk 0:02:11.7]} 35. Ke2 {[%clk 0:00:56.7]} 35... Ne6 {[%clk
0:02:07.8]} 36. g4 {[%clk 0:00:56.9]} 36... hxg4 {[%clk 0:02:04]} 37. fxg4
{[%clk 0:00:57.2]} 37... Rf4 {[%clk 0:02:04.6]} 38. Be3 {[%clk 0:00:49.6]} 38...
Re4 {[%clk 0:02:03.5]} 39. g5 {[%clk 0:00:49.7]} 39... Nxg5 {[%clk 0:01:59.2]}
40. hxg5 {[%clk 0:00:40]} 40... Bxg5 {[%clk 0:01:59.6]} 41. Rxf7+ {[%clk
0:00:39.1]} 41... Kg8 {[%clk 0:02:00.2]} 42. Rc7 {[%clk 0:00:26]} 42... Rxe3+
{[%clk 0:01:59]} 43. Kd1 {[%clk 0:00:25.9]} 43... Re4 {[%clk 0:01:55]} 44. Rc6
{[%clk 0:00:24.2]} 44... Kh7 {[%clk 0:01:53.3]} 45. Rxa6 {[%clk 0:00:23.9]}
45... Kh6 {[%clk 0:01:53]} 46. Ra3 {[%clk 0:00:20.1]} 46... Kh5 {[%clk
0:01:50.9]} 47. Rg3 {[%clk 0:00:18.8]} 47... Kh4 {[%clk 0:01:50.9]} 48. Rg1
{[%clk 0:00:16.8]} 48... Kh5 {[%clk 0:01:50.4]} 49. Rh1+ {[%clk 0:00:16]} 49...
Bh4 {[%clk 0:01:49.8]} 50. Kd2 {[%clk 0:00:14.9]} 50... g5 {[%clk 0:01:50.1]}
51. Rg1 {[%clk 0:00:14.4]} 51... Rg4 {[%clk 0:01:49.9]} 52. Rh1 {[%clk
0:00:13.4]} 52... Rf4 {[%clk 0:01:47]} 53. Ke3 {[%clk 0:00:12.6]} 53... Kg6
{[%clk 0:01:43.2]} 54. Rd1 {[%clk 0:00:06.8]} 54... Bf2+ {[%clk 0:01:42.3]} 55.
Ke2 {[%clk 0:00:06.4]} 55... g4 {[%clk 0:01:42.5]} 56. Rd6+ {[%clk 0:00:05.2]}
56... Kg5 {[%clk 0:01:42.7]} 57. Rd5+ {[%clk 0:00:05.4]} 57... Kh4 {[%clk
0:01:42.7]} 58. Kf1 {[%clk 0:00:05.5]} 58... Bd4+ {[%clk 0:01:41.8]} 59. Kg2
{[%clk 0:00:05.1]} 59... c3 {[%clk 0:01:42]} 60. Rd7 {[%clk 0:00:02.7]} 60...
Rf2+ {[%clk 0:01:40]} 61. Kh1 {[%clk 0:00:02.5]} 61... Rd2 {[%clk 0:01:39.9]}
62. Rh7+ {[%clk 0:00:01.9]} 62... Kg3 {[%clk 0:01:40.5]} 63. Rh3+ {[%clk
0:00:01.8]} 63... Kf4 {[%clk 0:01:35.8]} 64. Rf3+ {[%clk 0:00:02.4]} 64... Ke4
{[%clk 0:01:35.6]} 65. Rf4+ {[%clk 0:00:02.7]} 65... Kd5 {[%clk 0:01:36.1]} 66.
Rf5+ {[%clk 0:00:02.9]} 66... Be5 {[%clk 0:01:36.7]} 67. Rg5 {[%clk 0:00:02.3]}
67... g3 {[%clk 0:01:35]} 0-1